fUSD/lending_fUSD_20260228
["ID","MTS","AMOUNT","RATE_DAILY","PERIOD"]
[406861023,1772245846326,-790.16,0.00016999,2]
[406861024,1772245846336,-500.0,0.00017,5]
[406861025,1772245846346,-367.92427393,0.00017,5]
[406861026,1772245846356,-300.0,0.00017,2]
[406861027,1772245846366,-2000.0,0.0001701,2]
[406861028,1772245846377,-1295.0,0.00017041,2]
[406861029,1772245846387,-1295.0,0.00017096,2]
[406861030,1772245846397,-5507.95366483,0.000171,2]
[406861031,1772245846407,-150.0,0.0001714,2]
[406861032,1772245846418,-1295.0,0.0001715,2]
[406861033,1772245846428,-187.78006525,0.00017151,2]
[406861034,1772245846438,-238.05592954,0.00017151,2]
[406861035,1772245846453,-364.15683999,0.00017151,2]
[406861036,1772245846468,-150.0,0.00017159,2]
[406861037,1772245846478,-1295.0,0.00017205,2]
[406861038,1772245846488,-168.0,0.00017208,2]
[406861039,1772245846498,-2401.0,0.00017224,2]
[406861040,1772245846509,-168.0,0.00017242,2]
[406861041,1772245846519,-1295.0,0.0001726,2]
[406861042,1772245846529,-1295.0,0.00017315,2]
[406861043,1772245846541,-200.0,0.00017365,2]
[406861044,1772245846551,-1295.0,0.0001737,2]
[406861045,1772245846562,-150.0,0.00017389,2]
[406861046,1772245846573,-150.0,0.00017419,2]
[406861048,1772245846583,-1295.0,0.00017424,2]
[406861050,1772245846593,-1295.0,0.00017479,2]
[406861052,1772245846603,-350.0,0.00017514,2]
[406861054,1772245846613,-1033.13865863,0.00017527,2]
[406861056,1772245846623,-1295.0,0.00017534,2]
[406861058,1772245846633,-3979.36214283,0.00017534,2]
[406861060,1772245846643,-150.0,0.0001754,2]
[406861063,1772245846656,-150.0,0.00017546,2]
[406861065,1772245846667,-152.13187669,0.00017551,2]
[406861067,1772245846677,-350.0,0.00017555,2]
[406861069,1772245846687,-150.0,0.00017557,2]
[406861071,1772245846698,-1295.0,0.00017589,2]
[406861073,1772245846708,-500.0,0.00017594,2]
[406861075,1772245846717,-9000.0,0.000176,6]
[406861076,1772245846734,-150.0,0.00017615,2]
[406861077,1772245846750,-896.85540865,0.0001764,2]
[406861078,1772245846766,-150.0,0.00017643,2]
[406861079,1772245846781,-1295.0,0.00017643,2]
[406861080,1772245846794,-154.79408589,0.00017669,2]
[406861081,1772245846806,-150.0,0.00017672,2]
[406861082,1772245846819,-1310.69339842,0.00017698,2]
[406861083,1772245846835,-227.3234191,0.00017699,2]
[406861084,1772245846848,-11200.0,0.000177,6]
[406861085,1772245846861,-350.0,0.00017729,2]
[406861086,1772245846873,-168.0,0.00017739,2]
[406861087,1772245846887,-150.0,0.0001775,2]
[406861088,1772245846901,-150.0,0.00017758,2]
[406861089,1772245846915,-2200.0,0.000178,6]
[406861090,1772245846928,-5000.0,0.00017808,2]
[406861091,1772245846941,-150.0,0.00017808,2]
[406861092,1772245846952,-500.0,0.00017808,2]
[406861093,1772245846963,-500.0,0.00017808,2]
[406861094,1772245846973,-500.0,0.00017808,2]
[406861095,1772245846986,-500.0,0.00017808,2]
[406861096,1772245847000,-500.0,0.00017808,2]
[406861097,1772245847023,-500.0,0.00017808,2]
[406861099,1772245847047,-500.0,0.00017808,2]
[406861101,1772245847064,-500.0,0.00017808,2]
[406861102,1772245847078,-500.0,0.00017808,2]
[406861103,1772245847094,-500.0,0.00017808,2]
[406861104,1772245847109,-500.0,0.00017808,2]
[406861105,1772245847124,-500.0,0.00017808,2]
[406861106,1772245847139,-500.0,0.00017808,2]
[406861107,1772245847154,-459.65440741,0.00017808,2]
[406861108,1772245847171,-500.0,0.00017808,2]
[406861109,1772245847183,-500.0,0.00017808,2]
[406861110,1772245847199,-500.0,0.00017808,2]
[406861111,1772245847214,-550.0,0.00017808,2]
[406861112,1772245847228,-800.0,0.00017808,2]
[406861113,1772245847243,-500.0,0.00017809,2]
[406861114,1772245847258,-350.0,0.00017816,2]
[406861115,1772245847272,-280.11464,0.0001782,2]
[406861116,1772245847284,-280.11464,0.0001782,2]
[406861117,1772245847298,-353.32081147,0.00017828,2]
[406861118,1772245847314,-1119.12864103,0.00017829,5]
[406861119,1772245847328,-500.0,0.00017829,2]
[406861120,1772245847362,-500.0,0.00017829,2]
[406861121,1772245847379,-830.3,0.00017829,2]
[406861122,1772245847396,-500.0,0.00017829,2]
[406861123,1772245847412,-500.0,0.00017829,2]
[406861124,1772245847427,-500.0,0.00017829,2]
[406861125,1772245847441,-595.16967246,0.00017829,2]
[406861126,1772245847453,-140156.87642438,0.0001783,2]
[406861127,1772245847466,-150.0,0.00017862,2]
[406861128,1772245847478,-150.0,0.00017863,2]
[406861129,1772245847492,-150.0,0.00017866,2]
[406861130,1772245847503,-150.0,0.00017866,2]
[406861131,1772245847518,-150.0,0.00017873,2]
[406861132,1772245847532,-168.0,0.0001788,2]
[406861133,1772245847549,-150.0,0.00017888,2]
[406861134,1772245847560,-1352.03500146,0.0001789,2]
[406861135,1772245847571,-168.0,0.00017894,2]
[406861136,1772245847583,-500.0,0.00017899,2]
[406861137,1772245847594,-500.0,0.00017899,2]
[406861138,1772245847605,-500.0,0.00017899,2]
[406861139,1772245847617,-500.0,0.00017899,2]
[406861140,1772245847631,-500.0,0.00017899,2]
[406861141,1772245847647,-648.3262986,0.00017899,2]
[406861142,1772245847661,-790.16,0.00017899,2]
[406861143,1772245847672,-2200.0,0.000179,6]
[406861144,1772245847684,-834.90626724,0.000179,2]
[406861145,1772245847700,-32888.5933,0.000179,2]
[406861146,1772245847711,-264.4246,0.000179,2]
[406861147,1772245847725,-1391.5104454,0.000179,2]
[406861148,1772245847737,-1000.0,0.000179,2]
[406861149,1772245847750,-1500000.0,0.000179,2]
[406861150,1772245847763,-306.7934957,0.000179,3]
[406861151,1772245847775,-151.0,0.000179,2]
[406861152,1772245847789,-153.089004,0.000179,2]
[406861153,1772245847803,-155.671451,0.000179,2]
[406861154,1772245847817,-151.111744,0.000179,2]
[406861155,1772245847831,-151.0,0.000179,2]
[406861156,1772245847845,-1393.11160223,0.000179,2]
[406861157,1772245847859,-151.0,0.000179,2]
[406861158,1772245847872,-151.0,0.000179,2]
[406861159,1772245847885,-151.0,0.000179,2]
[406861160,1772245847898,-151.0,0.000179,2]
[406861161,1772245847911,-273.196944,0.000179,2]
[406861162,1772245847925,-151.0,0.000179,2]
[406861163,1772245847939,-151.0,0.000179,2]
[406861164,1772245847952,-151.0,0.000179,2]
[406861165,1772245847963,-151.0,0.000179,2]
[406861166,1772245847976,-151.0,0.000179,2]
[406861167,1772245847987,-5067.37682457,0.000179,2]
[406861168,1772245847999,-14109.0,0.000179,2]
[406861169,1772245848011,-150.0,0.00017901,2]
[406861170,1772245848023,-150.0,0.00017918,2]
[406861171,1772245848034,-168.0,0.00017932,2]
[406861172,1772245848047,-150.0,0.00017943,2]
[406861173,1772245848058,-150.0,0.00017944,2]
[406861174,1772245848070,-350.0,0.00017955,2]
[406861175,1772245848082,-154.21,0.0001797,2]
[406861176,1772245848094,-150.0,0.00017972,2]
[406861177,1772245848105,-150.0,0.00017973,2]
[406861178,1772245848117,-150.0,0.00017973,2]
[406861179,1772245848128,-150.0,0.00017982,2]
[406861180,1772245848140,-506.23015856,0.00017982,2]
[406861181,1772245848152,-1352.03500146,0.0001799,2]
[406861182,1772245848163,-150.0,0.00017992,2]
[406861183,1772245848174,-19393.9724405,0.00017996,2]
[406861184,1772245848186,-1107.76913409,0.00017999,5]
[406861185,1772245848197,-309.77738492,0.00017999,2]
[406861186,1772245848209,-500.0,0.00017999,2]
[406861187,1772245848221,-500.0,0.00017999,2]
[406861188,1772245848231,-195.98442162,0.00017999,2]
[406861189,1772245848243,-300.0,0.00017999,2]
[406861190,1772245848254,-500.0,0.00017999,2]
[406861191,1772245848265,-500.0,0.00017999,2]
[406861192,1772245848278,-500.0,0.00017999,2]
[406861193,1772245848289,-323.52915924,0.00017999,2]
[406861194,1772245848300,-500.0,0.00017999,2]
[406861195,1772245848312,-500.0,0.00017999,2]
[406861196,1772245848323,-500.0,0.00017999,2]
[406861197,1772245848335,-500.0,0.00017999,2]
[406861198,1772245848347,-500.0,0.00017999,2]
[406861199,1772245848359,-500.0,0.00017999,2]
[406861200,1772245848371,-500.0,0.00017999,2]
[406861201,1772245848384,-500.0,0.00017999,2]
[406861202,1772245848396,-500.0,0.00017999,2]
[406861203,1772245848411,-500.0,0.00017999,2]
[406861204,1772245848426,-500.0,0.00017999,2]
[406861205,1772245848439,-500.0,0.00017999,2]
[406861206,1772245848452,-281.09297896,0.00017999,2]
[406861207,1772245848468,-830.3,0.00017999,2]
[406861208,1772245848480,-830.3,0.00017999,2]
[406861209,1772245848491,-830.3,0.00017999,2]
[406861210,1772245848503,-830.3,0.00017999,2]
[406861211,1772245848516,-830.3,0.00017999,2]
[406861212,1772245848528,-830.3,0.00017999,2]
[406861213,1772245848541,-830.3,0.00017999,2]
[406861214,1772245848552,-830.3,0.00017999,2]
[406861215,1772245848564,-830.3,0.00017999,2]
[406861216,1772245848578,-830.3,0.00017999,2]
[406861217,1772245848590,-830.3,0.00017999,2]
[406861218,1772245848607,-830.3,0.00017999,2]
[406861219,1772245848618,-790.16,0.00017999,2]
[406861220,1772245848630,-830.3,0.00017999,2]
[406861221,1772245848640,-790.16,0.00017999,2]
[406861222,1772245848651,-830.35348064,0.00017999,2]
[406861223,1772245848663,-790.16,0.00017999,2]
[406861224,1772245848675,-790.16,0.00017999,2]
[406861225,1772245848908,-790.16,0.00017999,2]
[406861226,1772245848923,-790.16,0.00017999,2]
[406861227,1772245848933,-790.16,0.00017999,2]
[406861228,1772245848943,-790.16,0.00017999,2]
[406861229,1772245848953,-790.16,0.00017999,2]
[406861230,1772245848962,-790.21712351,0.00017999,2]
[406861231,1772245848972,-500.0,0.00017999,2]
[406861232,1772245848981,-500.0,0.00017999,2]
[406861233,1772245848991,-500.0,0.00017999,2]
[406861234,1772245849001,-500.0,0.00017999,2]
[406861235,1772245849010,-500.0,0.00017999,2]
[406861236,1772245849020,-500.0,0.00017999,2]
[406861237,1772245849029,-500.0,0.00017999,2]
[406861238,1772245849039,-500.0,0.00017999,2]
[406861239,1772245849048,-211.6822001,0.00017999,2]
[406861240,1772245849058,-500.0,0.00017999,2]
[406861241,1772245849067,-500.0,0.00017999,2]
[406861242,1772245849077,-500.0,0.00017999,2]
[406861243,1772245849087,-500.0,0.00017999,2]
[406861244,1772245849096,-500.0,0.00017999,2]
[406861245,1772245849107,-500.0,0.00017999,2]
[406861246,1772245849116,-500.0,0.00017999,2]
[406861247,1772245849125,-500.0,0.00017999,2]
[406861248,1772245849134,-500.0,0.00017999,2]
[406861249,1772245849144,-180.4202576,0.00017999,2]
[406861250,1772245849153,-500.0,0.00017999,2]
[406861251,1772245849163,-497.70153186,0.00017999,2]
[406861252,1772245849172,-301.35552362,0.00017999,2]
[406861253,1772245849182,-300.0,0.00017999,2]
[406861254,1772245849191,-292.6907697,0.00017999,2]
[406861255,1772245849201,-195.66587194,0.00017999,2]
[406861256,1772245849211,-4651251.11427414,0.00018,2]
[406861257,1772245849324,-81961.72479662,0.00018,2]
[406861258,1772245849377,-151.0,0.00014634,2]
[406861259,1772245849387,-108.39905185,0.00018,2]
[406861260,1772245849402,-331.54425,0.00018,2]
[406861261,1772245849413,-1054.93,0.00018,2]
[406861262,1772245849425,-5452.91442553,0.00018,2]
[406861263,1772245849471,-3940.28931362,0.00011099,2]
[406861264,1772245849482,-1813.68235876,0.00011099,2]
[406861265,1772245849493,-1000.0,0.00011099,2]
[406861266,1772245849507,-608.13657162,0.00011099,2]
[406861267,1772245849518,-562.39994,0.00011099,2]
[406861268,1772245849530,-345.0,0.00011099,2]
[406861269,1772245849544,-2000.1049965,0.00011099,2]
[406861270,1772245849565,-11292.4576942,0.00011099,2]
[406861271,1772245849607,-6182.0,0.00011099,2]
[406861272,1772245849618,-658.52176441,0.00011099,2]
[406861273,1772245849630,-1758.1117051,0.00011099,2]
[406861275,1772246204547,211.3,6.573e-05,2]
[406861277,1772246568791,1483.02,7.193e-05,2]
[406861278,1772246796091,-1200.0,8.672e-05,2]
[406861279,1772246796117,-300.0,8.672e-05,2]
[406861280,1772246796143,-300.0,8.672e-05,2]
[406861281,1772246796168,-204.90619438,8.673e-05,2]
[406861282,1772246796193,-500.0,8.673e-05,2]
[406861283,1772246796218,-500.0,8.673e-05,2]
[406861284,1772246796242,-500.0,8.673e-05,2]
[406861285,1772246796265,-500.0,8.673e-05,2]
[406861286,1772246796289,-500.0,8.673e-05,2]
[406861287,1772246796314,-195.0,8.673e-05,2]
[406861288,1772246796338,-250.0,8.673e-05,2]
[406861289,1772246796364,-222.0,8.673e-05,2]
[406861290,1772246796389,-195.0,8.956e-05,2]
[406861291,1772246796414,-195.0,8.956e-05,2]
[406861292,1772246796439,-166.95588308,8.956e-05,2]
[406861293,1772246796465,-1000.0,9.221e-05,2]
[406861294,1772246796491,-1000.0,9.221e-05,2]
[406861295,1772246796516,-1000.0,9.221e-05,2]
[406861296,1772246796541,-850.06934174,9.221e-05,2]
[406861297,1772246796565,-1000.0,9.221e-05,2]
[406861298,1772246796588,-251.91062312,9.54e-05,2]
[406861299,1772246796612,-250.0,9.54e-05,2]
[406861300,1772246796635,-195.0,9.54e-05,2]
[406861301,1772246796659,-1500.0,9.768e-05,2]
[406861302,1772246796682,-1435.44,9.9e-05,2]
[406861303,1772246796707,-173.106465,9.991e-05,2]
[406861304,1772246796732,-1053.29723279,0.0001,2]
[406861305,1772246796757,-337.0,0.0001,2]
[406861306,1772246796782,-337.0,0.0001,2]
[406861307,1772246796805,-338.95182039,0.0001,2]
[406861308,1772246796828,-5505.3624395,0.00010108,2]
[406861311,1772247031357,-553.02688924,8.672e-05,2]
[406861312,1772247031370,-378.23771447,8.672e-05,2]
[406861313,1772247031383,-268.73539629,8.672e-05,2]
[406861314,1772247031392,-307.90351224,8.673e-05,2]
[406861315,1772247031401,-500.0,8.673e-05,2]
[406861316,1772247031411,-500.0,8.673e-05,2]
[406861317,1772247031420,-500.0,8.673e-05,2]
[406861318,1772247031430,-455.97305203,8.673e-05,2]
[406861319,1772247031439,-501.32934498,8.673e-05,2]
[406861320,1772247031449,-500.42735735,8.673e-05,2]
[406861321,1772247031460,-501.47730232,8.673e-05,2]
[406861322,1772247031470,-500.0,8.673e-05,2]
[406861323,1772247031480,-500.0,8.673e-05,2]
[406861324,1772247031489,-500.0,8.673e-05,2]
[406861325,1772247031499,-500.0,8.673e-05,2]
[406861326,1772247031508,-577.89621277,8.673e-05,2]
[406861327,1772247031518,-500.0,8.673e-05,2]
[406861329,1772247031528,-500.0,8.673e-05,2]
[406861330,1772247031538,-500.0,8.673e-05,2]
[406861331,1772247031547,-500.0,8.673e-05,2]
[406861332,1772247031557,-222.0,8.673e-05,2]
[406861333,1772247031569,-1000.0,9.221e-05,2]
[406861335,1772247031579,-588.30496444,9.221e-05,2]
[406861337,1772247031589,-502.25463572,9.221e-05,2]
[406861339,1772247031599,-500.0,9.221e-05,2]
[406861341,1772247031609,-500.0,9.221e-05,2]
[406861343,1772247031619,-1000.0,9.221e-05,2]
[406861345,1772247031628,-1000.0,9.221e-05,2]
[406861347,1772247031638,-500.0,9.221e-05,2]
[406861349,1772247031647,-500.0,9.221e-05,2]
[406861351,1772247031657,-502.4149369,9.221e-05,2]
[406861353,1772247031668,-500.0,9.221e-05,2]
[406861355,1772247031678,-250.0,9.39e-05,2]
[406861357,1772247031688,-250.0,9.54e-05,2]
[406861359,1772247031698,-1000.0,9.768e-05,2]
[406861361,1772247031708,-1500.0,9.768e-05,2]
[406861363,1772247031718,-1000.0,9.768e-05,2]
[406861366,1772247031729,-188.916273,9.817e-05,2]
[406861368,1772247031739,-250.0,9.892e-05,2]
[406861370,1772247031748,-4494.6275605,0.00010108,2]
[406861372,1772247031757,-299.99,0.00010108,2]
[406861373,1772247031772,-150.99,0.00010108,2]
[406861376,1772247031782,-297.94576275,0.00010247,2]
[406861378,1772247031793,-677.0,0.00010255,2]
[406861380,1772247031803,-150.0,0.00010299,2]
[406861382,1772247031812,-507.0718689,0.000103,2]
[406861384,1772247031822,-500.0,0.000103,2]
[406861386,1772247031832,-500.0,0.000103,2]
[406861388,1772247031843,-500.0,0.000103,2]
[406861390,1772247031853,-500.0,0.000103,2]
[406861391,1772247031862,-500.0,0.000103,2]
[406861392,1772247031872,-500.0,0.000103,2]
[406861393,1772247031881,-500.0,0.000103,2]
[406861394,1772247031890,-500.0,0.000103,2]
[406861395,1772247031899,-500.0,0.000103,2]
[406861396,1772247031908,-500.0,0.000103,2]
[406861397,1772247031918,-500.0,0.000103,2]
[406861398,1772247031927,-500.0,0.000103,2]
[406861399,1772247031936,-500.0,0.000103,2]
[406861400,1772247031947,-500.0,0.000103,2]
[406861401,1772247031956,-500.0,0.000103,2]
[406861402,1772247031965,-735.19479247,0.000103,2]
[406861403,1772247031974,-1002.29652821,0.00010316,2]
[406861404,1772247031983,-500.0,0.00010334,2]
[406861405,1772247031993,-1981.0,0.00010351,2]
[406861406,1772247032002,-761.0,0.00010371,2]
[406861407,1772247032011,-164.26,0.00010517,2]
[406861408,1772247032021,-419.88624223,0.00010604,2]
[406861409,1772247032030,-500.0,0.00010608,2]
[406861411,1772247032040,-8724.08375643,0.00010797,2]
[406861413,1772247032050,-1232.81448146,0.00010798,2]
[406861415,1772247032060,-10067.8,0.00010825,2]
[406861417,1772247032069,-1112.0,0.00010849,2]
[406861419,1772247032078,-2253.98962419,0.00010878,2]
[406861421,1772247032088,-1576.8488842,0.00010879,2]
[406861423,1772247032097,-500.0,0.00010882,2]
[406861425,1772247032107,-1119.12864103,0.00010888,3]
[406861427,1772247032117,-500.0,0.00010888,2]
[406861429,1772247032126,-184.44852291,0.00010888,2]
[406861431,1772247032136,-284597.95641176,0.00010889,2]
[406861444,1772247032249,-356830.521,0.00010889,2]
[406861446,1772247032262,-30792.31125836,0.00010889,2]
[406861450,1772247032283,-36455.60386199,0.00010889,2]
[406861452,1772247032295,-6955.30551133,0.00010889,2]
[406861454,1772247032307,-712.750005,0.00010889,2]
[406861606,1772247037412,-302.38540097,0.00010889,2]
[406861607,1772247037424,-1283353.16655059,0.00010889,2]
[406861608,1772247037434,-1722.1825,0.00010897,2]
[406861609,1772247037443,-4133.7097,0.00010898,2]
[406861610,1772247037453,-35000.8431,0.00010898,2]
[406861611,1772247037462,-264.4246,0.00010898,2]
[406861612,1772247037472,-2500.0,0.00010898,2]
[406861613,1772247037482,-150.0,0.00010959,2]
[406861614,1772247037491,-19315.17,0.00010959,2]
[406861615,1772247037501,-1268.993,0.00010959,2]
[406861616,1772247037510,-177.333,0.00010959,2]
[406861617,1772247037519,-1107.76913409,0.00010991,3]
[406861618,1772247037528,-151.0,0.00010991,2]
[406861619,1772247037538,-151.0,0.00010991,2]
[406861620,1772247037547,-500.0,0.00010991,2]
[406861621,1772247037556,-500.0,0.00010991,2]
[406861622,1772247037566,-151.0,0.00010991,2]
[406861623,1772247037575,-500.0,0.00010991,2]
[406861624,1772247037585,-151.0,0.00010991,2]
[406861625,1772247037594,-500.0,0.00010991,2]
[406861626,1772247037604,-151.0,0.00010991,2]
[406861627,1772247037613,-500.0,0.00010991,2]
[406861628,1772247037623,-151.0,0.00010991,2]
[406861629,1772247037632,-500.0,0.00010991,2]
[406861630,1772247037641,-500.0,0.00010991,2]
[406861631,1772247037650,-500.0,0.00010991,2]
[406861632,1772247037660,-151.0,0.00010991,2]
[406861633,1772247037669,-500.0,0.00010991,2]
[406861634,1772247037678,-500.0,0.00010991,2]
[406861636,1772247037687,-151.0,0.00010991,2]
[406861638,1772247037696,-500.0,0.00010991,2]
[406861640,1772247037705,-500.0,0.00010991,2]
[406861642,1772247037713,-151.0,0.00010991,2]
[406861644,1772247037723,-500.0,0.00010991,2]
[406861647,1772247037733,-500.0,0.00010991,2]
[406861649,1772247037742,-151.0,0.00010991,2]
[406861651,1772247037751,-500.0,0.00010991,2]
[406861653,1772247037762,-151.0,0.00010991,2]
[406861654,1772247037773,-500.0,0.00010991,2]
[406861656,1772247037783,-500.0,0.00010991,2]
[406861657,1772247037793,-151.0,0.00010991,2]
[406861659,1772247037803,-500.0,0.00010991,2]
[406861660,1772247037813,-151.0,0.00010991,2]
[406861662,1772247037822,-500.0,0.00010991,2]
[406861664,1772247037833,-500.0,0.00010991,2]
[406861666,1772247037842,-334.50866629,0.00010991,2]
[406861668,1772247037852,-151.0,0.00010991,2]
[406861670,1772247037862,-151.0,0.00010991,2]
[406861672,1772247037872,-151.0,0.00010991,2]
[406861674,1772247037881,-151.0,0.00010991,2]
[406861676,1772247037891,-151.0,0.00010991,2]
[406861677,1772247037900,-151.0,0.00010991,2]
[406861678,1772247037909,-151.0,0.00010991,2]
[406861679,1772247037918,-151.0,0.00010991,2]
[406861680,1772247037928,-151.0,0.00010991,2]
[406861681,1772247037937,-151.0,0.00010991,2]
[406861682,1772247037947,-151.0,0.00010991,2]
[406861683,1772247037957,-151.0,0.00010991,2]
[406861684,1772247037967,-151.0,0.00010991,2]
[406861685,1772247037976,-151.0,0.00010991,2]
[406861686,1772247037985,-151.0,0.00010991,2]
[406861687,1772247037995,-151.0,0.00010991,2]
[406861688,1772247038004,-151.0,0.00010991,2]
[406861689,1772247038014,-151.0,0.00010991,2]
[406861690,1772247038023,-151.0,0.00010991,2]
[406861691,1772247038033,-226313.2201,0.00010999,2]
[406861692,1772247038043,-943.78455388,0.00011,2]
[406861693,1772247038052,-2184.36,0.00011091,2]
[406861694,1772247038062,-21873.54383774,0.00011098,2]
[406861695,1772247038071,-23375.8024031,0.00011099,2]
[406861696,1772247038082,-560.82493212,0.00011099,2]
[406861697,1772247038091,-195.0,0.00011119,2]
[406861698,1772247038101,-2500.0,0.00011119,2]
[406861699,1772247038110,-2500.0,0.00011119,2]
[406861700,1772247038120,-2500.0,0.00011119,2]
[406861701,1772247038129,-2500.0,0.00011119,2]
[406861702,1772247038138,-2500.0,0.00011119,2]
[406861703,1772247038148,-186.17,0.00011371,2]
[406861704,1772247038158,-250.0,0.00011459,2]
[406861705,1772247038167,-23375.80240309,0.00011586,2]
[406861706,1772247038177,-560.82493207,0.00011587,2]
[406861707,1772247038187,-1829.61,0.00011616,2]
[406861708,1772247038196,-2195.17812406,0.00011718,2]
[406861709,1772247038205,-500.0,0.0001207,2]
[406861710,1772247038215,-500.0,0.0001207,2]
[406861711,1772247038225,-500.0,0.0001207,2]
[406861712,1772247038234,-500.0,0.0001207,2]
[406861713,1772247038243,-500.0,0.0001207,2]
[406861714,1772247038253,-500.0,0.0001207,2]
[406861715,1772247038262,-500.0,0.0001207,2]
[406861716,1772247038271,-500.0,0.0001207,2]
[406861717,1772247038281,-500.66534758,0.0001207,2]
[406861718,1772247038290,-500.0,0.0001207,2]
[406861719,1772247038299,-500.0,0.0001207,2]
[406861720,1772247038309,-500.0,0.0001207,2]
[406861721,1772247038318,-500.0,0.0001207,2]
[406861722,1772247038328,-500.0,0.0001207,2]
[406861723,1772247038338,-500.0,0.0001207,2]
[406861724,1772247038348,-500.0,0.0001207,2]
[406861725,1772247038357,-500.0,0.0001207,2]
[406861726,1772247038367,-500.0,0.0001207,2]
[406861727,1772247038376,-500.0,0.0001207,2]
[406861728,1772247038386,-500.0,0.0001207,2]
[406861729,1772247038396,-772.06799105,0.0001207,2]
[406861730,1772247038406,-23375.80240309,0.00012375,2]
[406861731,1772247038415,-560.82493207,0.00012376,2]
[406861732,1772247038425,-1849.55,0.00012392,2]
[406861733,1772247038436,-2677.81,0.00012915,2]
[406861734,1772247038445,-500.0,0.00012915,2]
[406861735,1772247038455,-23375.80240309,0.00013165,2]
[406861736,1772247038465,-560.82493207,0.00013165,2]
[406861737,1772247038476,-3240.0,0.00013425,2]
[406861738,1772247038485,-12476.98419876,0.00013599,2]
[406861739,1772247038495,-444.25243944,0.00013599,2]
[406861740,1772247038504,-500.0,0.00013698,2]
[406861741,1772247038514,-500.0,0.00013698,2]
[406861742,1772247038524,-500.0,0.00013698,2]
[406861743,1772247038533,-500.0,0.00013698,2]
[406861744,1772247038543,-500.0,0.00013698,2]
[406861745,1772247038552,-500.0,0.00013698,2]
[406861746,1772247038561,-500.0,0.00013698,2]
[406861747,1772247038571,-500.0,0.00013698,2]
[406861748,1772247038580,-500.0,0.00013698,2]
[406861749,1772247038590,-500.0,0.00013698,2]
[406861750,1772247038600,-500.0,0.00013698,2]
[406861751,1772247038610,-500.0,0.00013698,2]
[406861752,1772247038620,-500.0,0.00013698,2]
[406861753,1772247038629,-500.0,0.00013698,2]
[406861754,1772247038638,-500.0,0.00013698,2]
[406861755,1772247038648,-500.0,0.00013698,2]
[406861756,1772247038657,-500.0,0.00013698,2]
[406861757,1772247038667,-500.0,0.00013698,2]
[406861758,1772247038676,-500.0,0.00013698,2]
[406861759,1772247038685,-500.0,0.00013698,2]
[406861760,1772247038695,-500.0,0.00013698,2]
[406861761,1772247038704,-500.0,0.00013698,2]
[406861762,1772247038713,-500.0,0.00013698,2]
[406861763,1772247038722,-500.0,0.00013698,2]
[406861764,1772247038732,-500.0,0.00013698,2]
[406861765,1772247038741,-500.0,0.00013698,2]
[406861766,1772247038751,-500.0,0.00013698,2]
[406861767,1772247038760,-500.0,0.00013698,2]
[406861768,1772247038775,-481.8,0.00013698,2]
[406861769,1772247038785,-500.0,0.00013698,2]
[406861770,1772247038795,-180.4202576,0.00013698,2]
[406861771,1772247038806,-500.0,0.00013698,2]
[406861772,1772247038816,-500.0,0.00013698,2]
[406861773,1772247038826,-500.0,0.00013698,2]